bitfinex/quotes_BTCUSD_20250408
["timestamp","ask_amount","ask_price","bid_price","bid_amount"]
[1744087016523,0.01250512,80306.0,80301.0,0.012453]
[1744087017660,0.01250512,80306.0,80305.0,0.261502]
[1744087017823,0.01250512,80306.0,80305.0,0.291388]
[1744087018028,0.003,80306.0,80305.0,0.339488]
[1744087018410,0.001,80306.0,80305.0,0.339488]
[1744087018808,0.261474,80314.0,80308.0,0.261491]
[1744087019242,0.01141409,80313.0,80308.0,0.261491]
[1744087019463,0.01141409,80313.0,80308.0,0.3202083]
[1744087020293,0.249028,80312.0,80308.0,0.3202083]
[1744087020870,0.01141409,80311.0,80308.0,0.261491]
[1744087021789,0.01141409,80310.0,80308.0,0.261491]
[1744087022174,0.001,80312.0,80308.0,0.261491]
[1744087022379,0.01141409,80311.0,80310.0,0.249034]
[1744087022538,0.01141409,80311.0,80310.0,0.261485]
[1744087022757,0.001,80313.0,80309.0,0.012451]
[1744087022953,0.01140863,80312.0,80309.0,0.012451]
[1744087023599,0.261473,80314.0,80309.0,0.012451]
[1744087023801,0.01140863,80311.0,80308.0,0.261491]
[1744087024018,0.012451,80314.0,80309.0,0.012451]
[1744087024159,0.012451,80314.0,80310.0,0.249034]
[1744087024791,0.014451,80314.0,80310.0,0.249034]
[1744087025214,0.002,80314.0,80310.0,0.261485]
[1744087025433,0.26192832,80316.0,80310.0,0.261485]
[1744087025757,0.003,80314.0,80310.0,0.261485]
[1744087027563,0.01142864,80313.0,80310.0,0.261485]
[1744087027922,0.01142864,80313.0,80311.0,0.3459829]
[1744087028124,0.26492832,80316.0,80311.0,0.26148]
[1744087028311,0.26392832,80316.0,80311.0,0.26148]
[1744087028508,0.01142666,80315.0,80312.0,0.261477]
[1744087028708,0.00046232,80316.0,80315.0,0.01245]
[1744087028920,0.01187806,80316.0,80315.0,0.01245]
[1744087029385,0.01187806,80316.0,80314.0,0.261473]
[1744087029549,0.01387806,80316.0,80314.0,0.261473]
[1744087029958,0.01387806,80316.0,80314.0,0.012451]
[1744087030194,0.01387806,80316.0,80312.0,0.261477]
[1744087030582,0.01687806,80316.0,80312.0,0.261477]
[1744087030931,0.01387806,80316.0,80312.0,0.261477]
[1744087031149,0.01587806,80316.0,80312.0,0.261477]
[1744087031345,0.01787806,80316.0,80312.0,0.261477]
[1744087031602,0.01787806,80316.0,80313.0,0.012451]
[1744087031808,0.01787806,80316.0,80313.0,0.261473]
[1744087032103,0.01387806,80316.0,80313.0,0.261473]
[1744087032322,0.01587806,80316.0,80314.0,0.26147]
[1744087032526,0.01587806,80316.0,80313.0,0.261473]
[1744087032895,0.01787806,80316.0,80313.0,0.261473]
[1744087033096,0.261469,80315.0,80307.0,0.012452]
[1744087033257,0.01787806,80316.0,80307.0,0.012452]
[1744087033464,0.01143212,80315.0,80312.0,0.012451]
[1744087033662,0.01143212,80315.0,80309.0,0.261486]
[1744087034325,0.01143212,80315.0,80314.0,0.249022]
[1744087034528,0.00246232,80316.0,80314.0,0.261473]
[1744087034738,0.002,80315.0,80314.0,0.261473]
[1744087035172,0.00046232,80316.0,80315.0,0.01245]
[1744087035331,0.00046232,80316.0,80315.0,0.40225]
[1744087035878,0.00246232,80316.0,80315.0,0.44925]
[1744087036435,0.00246232,80316.0,80315.0,0.5786387]
[1744087036840,0.00246232,80316.0,80315.0,0.60171038]
[1744087037070,0.01864644,80319.0,80318.0,0.26146]
[1744087037071,7.6e-07,80319.0,80318.0,0.26146]
[1744087037392,7.6e-07,80319.0,80318.0,0.8276487]
[1744087037813,7.6e-07,80319.0,80318.0,0.85072038]
[1744087038498,7.6e-07,80319.0,80318.0,0.8366487]
[1744087038716,7.6e-07,80319.0,80318.0,0.71626]
[1744087039933,7.6e-07,80319.0,80318.0,0.8366487]
[1744087041108,7.6e-07,80319.0,80318.0,0.8446487]
[1744087041313,7.6e-07,80319.0,80318.0,0.8536487]
[1744087042640,7.6e-07,80319.0,80318.0,0.86818955]
[1744087043280,0.0001682,80333.0,80332.0,0.601414]
[1744087043459,0.0001682,80333.0,80332.0,0.8276027]
[1744087044426,0.0001681,80348.0,80347.0,0.601366]
[1744087044707,0.00029397,80348.0,80347.0,0.8275547]
[1744087046461,0.00029397,80348.0,80347.0,0.698166]
[1744087046981,0.00029397,80348.0,80347.0,0.707166]
[1744087047185,0.00029397,80348.0,80347.0,0.8455547]
[1744087047429,7e-08,80349.0,80348.0,0.352445]
[1744087047674,0.0001681,80352.0,80351.0,0.012445]
[1744087047675,1.7e-07,80352.0,80351.0,0.012445]
[1744087047825,0.0001682,80370.0,80366.0,0.012443]
[1744087048024,0.0001682,80370.0,80366.0,0.57851976]
[1744087048227,0.0001682,80370.0,80366.0,0.8248927]
[1744087050116,0.00014599,80370.0,80369.0,0.601294]
[1744087050973,0.00014599,80370.0,80369.0,0.7306827]
[1744087051725,0.00014599,80370.0,80369.0,0.7376827]
[1744087051932,0.00014599,80370.0,80369.0,0.347]
[1744087052256,0.01007932,80370.0,80369.0,0.355]
[1744087052728,0.01007932,80370.0,80369.0,0.360442]
[1744087053161,0.00014599,80370.0,80369.0,0.369442]
[1744087053436,0.00014599,80370.0,80369.0,0.360442]
[1744087053664,0.00014599,80370.0,80369.0,0.369442]
[1744087053954,0.00014599,80370.0,80369.0,0.368442]
[1744087054453,0.00014599,80370.0,80369.0,0.024]
[1744087054856,0.01010668,80370.0,80369.0,0.024]
[1744087056385,0.01010668,80370.0,80369.0,0.272852]
[1744087056638,0.00014599,80370.0,80369.0,0.285294]
[1744087057273,0.00014599,80370.0,80369.0,0.625294]
[1744087061212,0.00014599,80370.0,80369.0,0.673994]
[1744087061430,0.00014599,80370.0,80369.0,0.8033827]
[1744087061636,0.00014599,80370.0,80369.0,0.7863827]
[1744087061838,0.00014599,80370.0,80369.0,0.7943827]
[1744087062258,0.00014599,80370.0,80369.0,0.8418827]
[1744087062901,0.00014599,80370.0,80369.0,0.8348827]
[1744087063101,0.00014599,80370.0,80369.0,0.8428827]
[1744087063611,0.00014599,80370.0,80369.0,0.8348827]
[1744087063737,0.00014599,80370.0,80369.0,0.8268827]
[1744087063941,0.00014599,80370.0,80369.0,0.8448827]
[1744087064354,0.00014599,80370.0,80369.0,0.358]
[1744087064553,0.01016336,80370.0,80369.0,0.370442]
[1744087064746,0.006,80379.0,80378.0,0.012441]
[1744087064994,0.00641939,80379.0,80376.0,0.012441]
[1744087065180,0.01472906,80379.0,80378.0,0.012441]
[1744087065387,0.00641939,80379.0,80378.0,0.012441]
[1744087065749,0.00641939,80379.0,80377.0,0.248824]
[1744087065750,0.0147236,80379.0,80376.0,0.012441]
[1744087066154,0.0147236,80379.0,80377.0,0.012441]
[1744087066408,0.0147236,80379.0,80377.0,0.02770704]
[1744087066613,0.0147236,80379.0,80378.0,0.006]
[1744087066966,0.0147236,80379.0,80378.0,0.013]
[1744087067171,0.0147236,80379.0,80378.0,0.007]
[1744087067594,0.0147236,80379.0,80378.0,0.019441]
[1744087067986,0.0147236,80379.0,80378.0,0.012441]
[1744087068196,0.0147236,80379.0,80378.0,0.025441]
[1744087068615,0.0147236,80379.0,80378.0,0.013]
[1744087069016,0.0271646,80379.0,80378.0,0.013]
[1744087073290,0.1565533,80379.0,80378.0,0.013]
[1744087073776,0.0271646,80379.0,80378.0,0.013]
[1744087073932,0.0271646,80379.0,80378.0,0.007]
[1744087074135,0.012441,80376.0,80370.0,0.352442]
[1744087074535,0.00686014,80375.0,80371.0,0.248845]
[1744087075382,0.00686014,80375.0,80374.0,0.012441]
[1744087075613,0.012441,80376.0,80370.0,0.34]
[1744087075751,0.012441,80373.0,80365.0,0.34]
[1744087076093,0.25567914,80375.0,80370.0,0.008]
[1744087076094,0.00689475,80372.0,80370.0,0.008]
[1744087076451,0.248833,80375.0,80370.0,0.004]
[1744087076642,0.0068675,80371.0,80370.0,0.004]
[1744087076890,0.012441,80374.0,80370.0,0.004]
[1744087077091,0.248833,80375.0,80374.0,0.004]
[1744087077492,0.248839,80373.0,80368.0,0.261296]
[1744087077660,0.261268,80377.0,80372.0,0.248842]
[1744087077882,0.261268,80377.0,80370.0,0.352442]
[1744087078095,0.261275,80375.0,80370.0,0.357442]
[1744087078293,0.261269,80377.0,80372.0,0.012442]
[1744087078681,0.012441,80377.0,80372.0,0.012442]
[1744087078914,0.012441,80377.0,80372.0,0.352442]
[1744087079133,0.261269,80377.0,80372.0,0.352442]
[1744087079682,0.261269,80377.0,80372.0,0.355442]
[1744087080018,0.02462175,80382.0,80373.0,0.26128]
[1744087080520,0.012441,80378.0,80373.0,0.012441]
[1744087080741,0.261268,80377.0,80372.0,0.343]
[1744087080943,0.012441,80375.0,80372.0,0.347]
[1744087081142,0.261268,80377.0,80372.0,0.343]
[1744087081571,0.012441,80377.0,80373.0,0.003]
[1744087081812,0.012441,80378.0,80373.0,0.264279]
[1744087081976,0.00641939,80379.0,80378.0,0.012441]
[1744087082748,0.00641939,80379.0,80374.0,0.344336]
[1744087082967,0.01204158,80379.0,80374.0,0.0955]
[1744087083184,0.26086258,80379.0,80374.0,0.0955]
[1744087083385,0.26086258,80379.0,80375.0,0.063251]
[1744087083386,0.01204158,80379.0,80375.0,0.063251]
[1744087083747,0.01204158,80379.0,80378.0,0.002]
[1744087084292,0.01204158,80379.0,80375.0,0.063251]
[1744087084495,0.012441,80378.0,80375.0,0.063251]
[1744087084654,0.012441,80376.0,80375.0,0.002]
[1744087085091,0.0056429,80376.0,80375.0,0.002]
[1744087085694,0.00641939,80379.0,80378.0,0.012441]
[1744087085867,0.00641939,80379.0,80378.0,0.3152636]
[1744087086455,0.00641939,80379.0,80378.0,0.0664396]
[1744087086949,0.00641939,80379.0,80376.0,0.24883]
[1744087086950,0.00641939,80379.0,80375.0,0.015441]
[1744087087091,0.00641939,80379.0,80378.0,0.002]
[1744087087730,0.01206208,80379.0,80378.0,0.002]
[1744087087910,0.01206208,80379.0,80375.0,0.265271]
[1744087087911,0.01206208,80379.0,80375.0,0.261271]
[1744087088116,0.00641939,80379.0,80375.0,0.261271]
[1744087088319,0.00641939,80379.0,80378.0,0.003]
[1744087088945,0.00641939,80379.0,80378.0,0.0525545]
[1744087089352,0.00641939,80379.0,80378.0,0.3746565]
[1744087089553,0.00641939,80379.0,80378.0,0.3870975]
[1744087090532,0.00641939,80379.0,80378.0,0.087719]
[1744087090851,0.00641939,80379.0,80378.0,0.075278]
[1744087091534,0.00641939,80379.0,80378.0,0.078278]
[1744087092679,0.00641939,80379.0,80378.0,0.090719]
[1744087093213,0.00641939,80379.0,80378.0,0.430719]
[1744087093729,0.00641939,80379.0,80378.0,0.478419]
[1744087099758,0.00641939,80379.0,80378.0,0.528019]
[1744087108767,0.00641939,80379.0,80378.0,0.6574077]
[1744087109574,0.00641939,80379.0,80378.0,0.68038729]
[1744087110723,0.00641939,80379.0,80378.0,0.67838729]
[1744087110924,0.00641939,80379.0,80378.0,0.67538729]
[1744087111222,0.00641939,80379.0,80378.0,0.68438729]
[1744087112221,0.00641939,80379.0,80378.0,0.68038729]
[1744087112633,0.00641939,80379.0,80378.0,0.68438729]
[1744087112835,0.00641939,80379.0,80378.0,0.69338729]
[1744087113792,0.00641939,80379.0,80378.0,0.68438729]
[1744087113987,0.00641939,80379.0,80378.0,0.67538729]
[1744087114193,0.00641939,80379.0,80378.0,0.68438729]
[1744087114417,0.00641939,80379.0,80378.0,0.69338729]
[1744087116934,0.00641939,80379.0,80378.0,0.56399859]
[1744087118218,0.00641939,80379.0,80378.0,0.46669859]
[1744087121035,0.00641939,80379.0,80378.0,0.45769859]
[1744087121229,0.00641939,80379.0,80378.0,0.44869859]
[1744087121434,0.00641939,80379.0,80378.0,0.45669859]
[1744087121636,0.00641939,80379.0,80378.0,0.46469859]
[1744087124650,0.00641939,80379.0,80378.0,0.45225759]
[1744087124766,0.26768139,80379.0,80378.0,0.11225759]
[1744087125179,0.26768139,80379.0,80378.0,0.089278]
[1744087125668,0.26768139,80379.0,80378.0,0.081278]
[1744087125988,0.26768139,80379.0,80378.0,0.085278]
[1744087126193,0.26768139,80379.0,80378.0,0.077278]
[1744087126538,0.01886039,80379.0,80378.0,0.12025]
[1744087126697,0.00641939,80379.0,80378.0,0.077278]
[1744087126901,0.00641939,80379.0,80378.0,0.338543]
[1744087127124,0.00641939,80379.0,80378.0,0.387243]
[1744087127901,0.00641939,80379.0,80378.0,0.41023165]
[1744087128225,0.00641939,80379.0,80378.0,0.41523165]
[1744087128836,0.00641939,80379.0,80378.0,0.392243]
[1744087129034,0.00641939,80379.0,80378.0,0.732243]
[1744087129835,0.00641939,80379.0,80378.0,0.75523061]
[1744087135348,0.00641939,80379.0,80378.0,0.70653061]
[1744087136674,0.00641939,80379.0,80378.0,0.683543]
[1744087139503,0.00641939,80379.0,80378.0,0.70654019]
[1744087142780,0.00641939,80379.0,80378.0,0.88132889]
[1744087143442,0.00641939,80379.0,80378.0,0.87732889]
[1744087143779,0.00641939,80379.0,80378.0,0.88332889]
[1744087144488,0.00641939,80379.0,80378.0,0.87232889]
[1744087144792,0.00641939,80379.0,80378.0,0.75794019]
[1744087145337,0.00641939,80379.0,80378.0,0.76594019]
[1744087147491,0.00641939,80379.0,80378.0,0.742943]
[1744087148208,0.00641939,80379.0,80378.0,0.697543]
[1744087150369,0.00641939,80379.0,80378.0,0.436278]
[1744087153351,0.01886039,80379.0,80378.0,0.096278]
[1744087153732,0.00641939,80379.0,80378.0,0.096278]
[1744087154029,0.01886039,80379.0,80378.0,0.096278]
[1744087154241,0.01886039,80379.0,80378.0,0.088278]
[1744087154413,0.01886039,80379.0,80378.0,0.092278]
[1744087154657,0.01886039,80379.0,80378.0,0.077278]
[1744087155683,0.01886039,80379.0,80378.0,0.080278]
[1744087155918,0.00641939,80379.0,80378.0,0.080278]
[1744087156327,0.00641939,80379.0,80378.0,0.082278]
[1744087156704,0.00641939,80379.0,80378.0,0.094719]
[1744087158711,0.00641939,80379.0,80378.0,0.479719]
[1744087166304,0.00641939,80379.0,80378.0,0.477719]
[1744087167053,0.00641939,80379.0,80378.0,0.470719]
[1744087167248,0.00641939,80379.0,80378.0,0.474719]
[1744087167446,0.00641939,80379.0,80378.0,0.478719]
[1744087170438,0.00641939,80379.0,80378.0,0.433719]
[1744087170757,0.01138273,80379.0,80378.0,0.433719]
[1744087171854,0.00641939,80379.0,80378.0,0.433719]
[1744087172459,0.00641939,80379.0,80378.0,0.481319]
[1744087173852,0.00641939,80379.0,80378.0,0.433719]
[1744087174211,0.01137866,80379.0,80378.0,0.433719]
[1744087175039,0.00641939,80379.0,80378.0,0.433719]
[1744087182859,0.01138316,80379.0,80378.0,0.433719]
[1744087183085,0.00641939,80379.0,80378.0,0.433719]
[1744087185067,0.0113811,80379.0,80378.0,0.433719]
[1744087185503,0.00641939,80379.0,80378.0,0.433719]
[1744087185738,0.01138048,80379.0,80378.0,0.433719]
[1744087186383,0.00641939,80379.0,80378.0,0.433719]
[1744087187852,0.00641939,80379.0,80378.0,0.6544077]
[1744087188210,0.00641939,80379.0,80378.0,0.67741209]
[1744087188653,0.00641939,80379.0,80378.0,0.66941209]
[1744087189011,0.00641939,80379.0,80378.0,0.68241209]
[1744087189211,0.00641939,80379.0,80378.0,0.67541209]
[1744087189412,0.00641939,80379.0,80378.0,0.66941209]
[1744087189651,0.00641939,80379.0,80378.0,0.67841209]
[1744087190603,3.9e-07,80379.0,80378.0,0.69295294]
[1744087190809,3.9e-07,80379.0,80378.0,0.70195294]
[1744087191769,3.9e-07,80379.0,80378.0,1.11635294]
[1744087192370,3.9e-07,80379.0,80378.0,1.10181209]
[1744087194388,0.0001683,80396.0,80395.0,0.443738]
[1744087194564,0.00029409,80396.0,80395.0,0.443738]
[1744087195404,0.00029409,80396.0,80395.0,0.692509]
[1744087195553,0.00029409,80396.0,80395.0,0.693509]
[1744087195755,0.00029409,80396.0,80395.0,0.695509]
[1744087197678,0.0001919,80396.0,80395.0,0.695509]
[1744087198543,0.0001919,80396.0,80395.0,0.8248977]
[1744087204013,9e-07,80396.0,80395.0,0.8248977]
[1744087204571,9e-07,80396.0,80395.0,0.8238977]
[1744087205025,9e-07,80396.0,80395.0,0.84782534]
[1744087205393,9e-07,80396.0,80395.0,0.85682534]
[1744087206426,9e-07,80396.0,80395.0,0.85382534]
[1744087206742,9e-07,80396.0,80395.0,0.86282534]
[1744087209496,9e-07,80396.0,80395.0,1.27722534]
[1744087209855,9e-07,80396.0,80395.0,1.2542977]
[1744087210459,9e-07,80396.0,80395.0,1.124909]
[1744087210815,9e-07,80396.0,80395.0,0.7724]
[1744087211016,9e-07,80396.0,80395.0,0.4324]
[1744087211171,0.00523409,80396.0,80395.0,0.4324]
[1744087211388,0.00523409,80396.0,80395.0,0.7724]
[1744087211573,0.00523409,80396.0,80395.0,0.775838]
[1744087211889,0.0124389,80396.0,80395.0,0.7634]
[1744087212105,0.00522864,80396.0,80395.0,0.7544]
[1744087213497,0.00522864,80396.0,80395.0,0.7654]
[1744087214316,0.01766664,80396.0,80395.0,0.7654]
[1744087215343,0.01766664,80396.0,80395.0,0.351]
[1744087216590,0.01766664,80396.0,80395.0,0.011]
[1744087217373,0.01766664,80396.0,80395.0,0.006]
[1744087217586,0.01766664,80396.0,80395.0,0.01]
[1744087217807,0.18145534,80396.0,80395.0,0.01]
[1744087218015,0.18145534,80396.0,80395.0,0.004]
[1744087218244,0.01244,80383.0,80378.0,0.413278]
[1744087218480,0.00507365,80382.0,80378.0,0.413278]
[1744087218749,0.00507365,80382.0,80381.0,0.01244]
[1744087218975,0.012439,80389.0,80381.0,0.310152]
[1744087218976,0.012439,80388.0,80381.0,0.310152]
[1744087219170,0.261235,80387.0,80381.0,0.310152]
[1744087219374,0.26629231,80387.0,80381.0,0.310152]
[1744087220710,0.26629231,80387.0,80381.0,0.312152]
[1744087220923,0.26629231,80387.0,80381.0,0.313152]
[1744087221959,0.248808,80384.0,80381.0,0.003]
[1744087222184,0.01244,80383.0,80381.0,0.003]
[1744087222542,0.26630831,80382.0,80381.0,0.003]
[1744087222959,0.26630831,80382.0,80381.0,0.001]
[1744087223343,0.26630831,80382.0,80381.0,0.005]
[1744087223562,0.26630831,80382.0,80381.0,0.004]
[1744087223942,0.26630831,80382.0,80381.0,0.01]
[1744087224141,0.26630831,80382.0,80381.0,0.002]
[1744087224341,0.261258,80380.0,80378.0,0.073278]
[1744087224563,0.01244,80381.0,80378.0,0.073278]
[1744087224564,0.0049143,80379.0,80378.0,0.1191749]
[1744087224947,0.001,80382.0,80381.0,0.01244]
[1744087225152,0.00594704,80382.0,80378.0,0.130919]
[1744087225420,0.00594704,80382.0,80379.0,0.012441]
[1744087225913,0.00594704,80382.0,80379.0,0.261261]
[1744087226113,0.00594704,80382.0,80378.0,0.085719]
[1744087226404,0.00594704,80382.0,80380.0,0.248818]
[1744087226632,0.248815,80381.0,80378.0,0.073278]
[1744087226833,0.012441,80379.0,80378.0,0.073278]
[1744087227108,0.01740439,80379.0,80378.0,0.073278]
[1744087227313,0.00496339,80379.0,80378.0,0.074278]
[1744087227476,0.00496339,80379.0,80378.0,0.073278]
[1744087227676,0.248815,80381.0,80378.0,0.073278]
[1744087227875,0.00491126,80380.0,80379.0,0.012441]
[1744087228097,0.26124,80386.0,80379.0,0.012441]
[1744087228293,0.00491672,80385.0,80381.0,0.01244]
[1744087228499,0.57722232,80390.0,80388.0,0.26123]
[1744087228814,0.00487794,80389.0,80386.0,0.012439]
[1744087229020,0.00487794,80389.0,80385.0,0.261242]
[1744087229223,0.261232,80388.0,80382.0,0.0452]
[1744087229421,0.01244,80380.0,80379.0,0.001]
[1744087229800,0.01736545,80380.0,80379.0,0.001]
[1744087230166,0.01736545,80380.0,80378.0,0.073278]
[1744087230450,0.26618545,80380.0,80378.0,0.073278]
[1744087230583,0.012441,80379.0,80378.0,0.073278]
[1744087230925,0.01735008,80379.0,80378.0,0.073278]
[1744087231293,0.01138603,80379.0,80378.0,0.073278]
[1744087232222,0.01138603,80379.0,80378.0,0.075278]
[1744087232383,0.01244,80381.0,80378.0,0.076278]
[1744087232588,0.01138732,80379.0,80378.0,0.076278]
[1744087232825,0.248818,80380.0,80378.0,0.076278]
[1744087233039,0.01138732,80379.0,80378.0,0.076278]
[1744087233651,0.01138732,80379.0,80378.0,0.075278]
[1744087233979,0.01138732,80379.0,80378.0,0.076278]
[1744087234163,0.01138732,80379.0,80378.0,0.428719]
[1744087234338,0.4118,80390.0,80388.0,0.012439]
[1744087234546,0.4118,80390.0,80389.0,0.261229]
[1744087234949,0.4118,80390.0,80388.0,0.012439]
[1744087235131,0.424239,80390.0,80385.0,0.01244]
[1744087235336,0.4118,80390.0,80386.0,0.261238]
[1744087236154,0.4118,80390.0,80389.0,0.012439]
[1744087236360,0.4118,80390.0,80389.0,0.057639]
[1744087236756,9e-07,80396.0,80393.0,0.261212]
[1744087237132,9e-07,80396.0,80395.0,0.261209]
[1744087237765,0.01104657,80396.0,80395.0,0.261209]
[1744087237977,0.01204657,80396.0,80393.0,0.261212]
[1744087238883,0.01204657,80396.0,80395.0,0.261209]
[1744087239082,0.0020009,80396.0,80395.0,0.261209]
[1744087239623,0.012439,80392.0,80382.0,0.30915]
[1744087239792,0.17786132,80392.0,80383.0,0.34]
[1744087239989,0.261226,80390.0,80383.0,0.34]
[1744087240326,0.17786132,80392.0,80383.0,0.34]
[1744087240327,0.00925226,80389.0,80383.0,0.588808]
[1744087240489,0.42664132,80392.0,80383.0,0.588808]
[1744087240686,0.00928402,80391.0,80386.0,0.261236]
[1744087242141,0.00928402,80391.0,80386.0,0.264236]
[1744087242558,0.248787,80390.0,80386.0,0.005]
[1744087242761,0.261233,80388.0,80386.0,0.005]
[1744087242900,0.00924676,80387.0,80386.0,0.005]
[1744087243100,0.012439,80391.0,80386.0,0.005]
[1744087243300,0.0092466,80390.0,80386.0,0.005]
[1744087243739,0.0092466,80390.0,80385.0,0.261242]
[1744087244127,0.0092466,80390.0,80386.0,0.008]
[1744087244766,0.0092466,80390.0,80386.0,0.009]
[1744087245263,0.0092466,80390.0,80386.0,0.021439]
[1744087245704,0.0092466,80390.0,80386.0,0.024439]
[1744087245904,0.0216856,80390.0,80386.0,0.012]
[1744087246130,0.2704746,80390.0,80386.0,0.012]
[1744087247272,0.0092466,80390.0,80387.0,0.248796]
[1744087247472,0.261218,80393.0,80387.0,0.248796]
[1744087247667,0.3906067,80393.0,80387.0,0.248796]
[1744087247873,0.02167718,80392.0,80386.0,0.024439]
[1744087248274,0.02167718,80392.0,80386.0,0.021439]
[1744087248590,0.02167718,80392.0,80387.0,0.003]
[1744087248789,0.02167718,80392.0,80387.0,0.005]
[1744087249333,0.248784,80391.0,80387.0,0.005]
[1744087249691,0.00923818,80390.0,80387.0,0.005]
[1744087249891,0.012439,80392.0,80387.0,0.002]
[1744087250099,0.00923818,80391.0,80388.0,0.248793]
[1744087250303,0.16542322,80396.0,80395.0,0.261209]
[1744087250504,0.00920151,80396.0,80395.0,0.261209]
[1744087251337,0.00920151,80396.0,80393.0,0.261213]
[1744087251562,0.00920151,80396.0,80395.0,0.261209]
[1744087251699,9e-07,80396.0,80395.0,0.261209]
[1744087251904,9e-07,80396.0,80395.0,0.262209]
[1744087253366,0.00921225,80396.0,80395.0,0.262209]
[1744087253768,0.00921225,80396.0,80395.0,0.261209]
[1744087253927,9e-07,80396.0,80395.0,0.262209]
[1744087254271,9e-07,80396.0,80395.0,0.264209]
[1744087258688,0.3905956,80396.0,80395.0,0.003]
[1744087259213,0.39980695,80396.0,80395.0,0.003]
[1744087259394,0.39980695,80396.0,80395.0,0.002]
[1744087259900,0.39980695,80396.0,80378.0,0.073278]
[1744087259901,0.261253,80382.0,80378.0,0.073278]
[1744087260264,0.012441,80379.0,80378.0,0.073278]
[1744087260666,0.02164399,80379.0,80378.0,0.073278]
[1744087261085,0.15103269,80379.0,80378.0,0.073278]
[1744087261443,0.16032593,80379.0,80378.0,0.079278]
[1744087262274,0.16032593,80379.0,80378.0,0.0872058]
[1744087262471,0.15103269,80379.0,80378.0,0.084278]
[1744087263099,0.15103269,80379.0,80378.0,0.080278]
[1744087263294,0.15103269,80379.0,80378.0,0.074278]
[1744087263462,0.14767326,80379.0,80378.0,0.074278]
[1744087264104,0.00920299,80379.0,80378.0,0.074278]
[1744087264321,0.00920299,80379.0,80378.0,0.1111197]
[1744087264477,0.012441,80379.0,80378.0,0.1111197]
[1744087264678,0.012441,80379.0,80378.0,0.074278]
[1744087265005,0.02152261,80379.0,80378.0,0.074278]
[1744087265821,0.02152261,80379.0,80378.0,0.075278]
[1744087266573,0.27034361,80379.0,80378.0,0.074278]
[1744087267086,0.27034361,80379.0,80378.0,0.075278]
[1744087272901,0.39973231,80379.0,80378.0,0.075278]
[1744087273604,0.39973231,80379.0,80378.0,0.074278]
[1744087273808,0.49411581,80379.0,80378.0,0.074278]
[1744087274019,0.39973231,80379.0,80378.0,0.075278]
[1744087274875,0.39973231,80379.0,80378.0,0.073278]
[1744087281330,0.54345231,80379.0,80378.0,0.073278]
[1744087283299,0.27034361,80379.0,80378.0,0.120778]
[1744087283508,0.27034361,80379.0,80378.0,0.073278]
[1744087283989,0.39973231,80379.0,80378.0,0.073278]
[1744087289987,0.41427316,80379.0,80378.0,0.073278]
[1744087290187,0.41427316,80379.0,80370.0,0.073278]
[1744087290188,0.261287,80371.0,80370.0,0.073278]
[1744087290331,0.3906757,80371.0,80370.0,0.073278]
[1744087290502,0.40036258,80371.0,80370.0,0.073278]
[1744087290903,0.41296563,80371.0,80370.0,0.073278]
[1744087291363,0.41300749,80371.0,80370.0,0.073278]
[1744087292162,0.41300749,80371.0,80370.0,0.167678]
[1744087292477,0.03477379,80371.0,80370.0,0.1844458]
[1744087292868,0.02508691,80371.0,80370.0,0.1844458]
[1744087293217,0.02508691,80371.0,80370.0,0.167678]
[1744087293529,0.01264491,80371.0,80370.0,0.167678]
[1744087293730,0.01264491,80371.0,80370.0,0.18012]
[1744087293932,4.186e-05,80371.0,80370.0,0.52012]
[1744087294300,0.14372,80390.0,80389.0,0.106839]
[1744087294616,0.012438,80396.0,80391.0,0.012439]
[1744087294792,0.01258332,80390.0,80389.0,0.355629]
[1744087294997,0.00982616,80390.0,80389.0,0.355629]
[1744087295318,0.012438,80394.0,80389.0,0.355629]
[1744087295463,0.00983691,80390.0,80389.0,0.355629]
[1744087295665,0.012438,80394.0,80389.0,0.355629]
[1744087296082,0.00983154,80393.0,80389.0,0.355629]
[1744087296289,0.00983154,80393.0,80389.0,0.106839]
[1744087296484,0.02217373,80393.0,80389.0,0.106839]
[1744087296843,0.02217373,80393.0,80389.0,0.110839]
[1744087297182,0.02217373,80393.0,80389.0,0.106839]
[1744087297379,0.02217373,80393.0,80390.0,0.261226]
[1744087297762,0.02217373,80393.0,80389.0,0.108839]
[1744087297763,0.03461173,80393.0,80389.0,0.0964]
[1744087297968,0.03461173,80393.0,80389.0,0.0994]
[1744087298240,0.03461173,80393.0,80389.0,0.0944]
[1744087298478,0.24878,80392.0,80389.0,0.0944]
[1744087298679,0.24878,80392.0,80390.0,0.005]
[1744087298680,0.012439,80391.0,80390.0,0.005]
[1744087299167,0.02227054,80391.0,80390.0,0.005]
[1744087299938,0.02227054,80391.0,80390.0,0.003]
[1744087300865,0.248795,80388.0,80384.0,0.0473]
[1744087301385,0.00985838,80387.0,80384.0,0.0473]
[1744087302298,0.00985838,80387.0,80384.0,0.0493]
[1744087302729,0.01244,80385.0,80384.0,0.0473]
[1744087302903,0.01244,80385.0,80384.0,0.0503]
[1744087303075,0.02235832,80385.0,80384.0,0.0503]
[1744087303278,0.02235832,80385.0,80384.0,0.0523]
[1744087304019,0.02235832,80385.0,80384.0,0.0503]
[1744087304181,0.02235832,80385.0,80384.0,0.0493]
[1744087304385,0.02235832,80385.0,80384.0,0.0523]
[1744087305306,0.00991832,80385.0,80384.0,0.0523]
[1744087305468,0.261234,80388.0,80384.0,0.0523]
[1744087305668,0.00990791,80385.0,80384.0,0.0523]
[1744087305890,0.261234,80388.0,80384.0,0.0523]
[1744087306093,0.00990791,80385.0,80384.0,0.0523]
[1744087306302,0.012439,80389.0,80384.0,0.06274]
[1744087306508,0.00990791,80385.0,80384.0,0.06274]
[1744087306711,0.012439,80389.0,80384.0,0.06374]
[1744087306910,0.00990791,80385.0,80384.0,0.06374]
[1744087307110,0.261232,80389.0,80384.0,0.06374]
[1744087307320,0.00990791,80385.0,80384.0,0.05974]
[1744087307605,0.261232,80389.0,80384.0,0.05974]
[1744087307819,0.00990791,80385.0,80384.0,0.05974]
[1744087308014,0.261232,80389.0,80384.0,0.05974]
[1744087308224,0.01244,80385.0,80384.0,0.0473]